Cogmind - Beta 9 @@@ ROGUE MODE // 2019.10.21 @ 21:50:55 Player: muxecoid Result: Self-destructed Performance ------------- Evolutions (8) 4000 Regions Visited (34) 6800 Robots Destroyed (291) 1455 Value Destroyed (13898) 13898 Prototype IDs (74) 1480 Alien Tech Used (3) 600 Bonus (8619) 8619 TOTAL SCORE: 36852 Bonus ------- High Alert Combat Kills 1364 Follower Combat Kills 1792 Network Hubs Disabled 200 Met Data Miner 300 Met Zhirov 300 Built Enhanced Grunts 300 A7 Reached Mainframe 300 Met R17 at Cetus 500 Found Hidden Lab 3000 Pursued by Intercept 1500 Friendly Fire -937 Cogmind --------- Core Integrity 1283/1450 Matter 213/300 Energy 21/1100 System Corruption 6% Temperature Cool (0) Location -2/Research Parts ------- Power (3) Propulsion (6) Combat Linear Gravjet Combat Linear Gravjet Combat Linear Gravjet Combat Linear Gravjet Utility (13) Large Storage Unit Large Storage Unit Large Storage Unit Large Storage Unit Experimental Energy Well Advanced Signal Interpreter Advanced Targeting Computer Experimental Targeting Computer Experimental Hacking Suite Quantum Router Weapon (2) Improved KE Penetrator Inventory (28) Combat Linear Gravjet Combat Linear Gravjet Combat Linear Gravjet Advanced Energy Well (800) Experimental Sensor Array Experimental Sensor Array Advanced Armor Integrity Analyzer Particle Accelerator Experimental ECM Suite Damper Plating System Backup Module Transdimensional Reconstructor Transdimensional Reconstructor Core Reset Matrix Gamma Rifle Immobilizer Cooled Proton Cannon Enhanced Nova Cannon Warp Cannon Tri-rail Accelerator Heavy Shock Bomb Launcher Gamma Bomb Array Mini Smartbomb Launcher Neutron Missile Launcher Vibroblade Peak State ------------ Power Cooled Fission Core Cooled Fission Core Light Antimatter Reactor Propulsion Combat Linear Gravjet Combat Linear Gravjet Combat Linear Gravjet Combat Linear Gravjet Combat Linear Gravjet Combat Linear Gravjet Utility Large Storage Unit Large Storage Unit Large Storage Unit Large Storage Unit Advanced Energy Well Advanced Signal Interpreter Advanced Targeting Computer Experimental Targeting Computer Particle Accelerator Medium Regenerative Plating Improved Remote Force Field Experimental Hacking Suite Quantum Router Weapon Cooled Proton Cannon Compact HERF Cannon Inventory Combat Linear Gravjet Combat Linear Gravjet Combat Linear Gravjet Experimental Energy Well Experimental Sensor Array Experimental Sensor Array Advanced Armor Integrity Analyzer Experimental ECM Suite Damper Plating Improved Remote Force Field System Backup Module Transdimensional Reconstructor Transdimensional Reconstructor Core Reset Matrix Immobilizer Enhanced Nova Cannon Warp Cannon Improved KE Penetrator Improved KE Penetrator Tri-rail Accelerator Heavy Shock Bomb Launcher Gamma Bomb Array Mini Smartbomb Launcher Neutron Missile Launcher Vibroblade [Rating: 179] Favorites ----------- Power Cooled Fission Core Engine Deuterium Engine Power Core Cooled Fission Core Reactor Light Antimatter Reactor Propulsion Combat Airjet Treads Light Treads Leg Aluminum Leg Wheel Compact Wheel Hover Unit Combat Airjet Utility Large Storage Unit Device Long-range Sensor Array Storage Large Storage Unit Processor Advanced Signal Interpreter Hackware Hacking Suite Protection Centrium Medium Armor Plating Weapon Improved KE Penetrator Energy Gun EM Pulse Gun Energy Cannon Improved EM Pulse Cannon Ballistic Gun Improved KE Penetrator Ballistic Cannon Tri-rail Accelerator Launcher Heavy Shock Bomb Launcher Special Weapon Improved Remote Datajack Slashing Weapon Vibroblade Build | -11 -10 -10 -9 -9 -9 -8 -8 -7 -7 -7 -7 -7 -7 -6 -6 -6 -6 -6 -6 -5 -5 -5 -5 -5 -5 -4 -4 -4 -4 -4 -4 -3 -3 -2 ------- Run | Scr Mat Min Mat Min Exi Min Mat Fac Was Fac Low Low Dat Pro Fac Ext Cet Arc Hub Fac Was Fac Upp Upp Zhi Pro Fac Was Fac Arm Lab Res Tes Res Slots Evolved 16 | . . . 2 . . . 2 2 . . . . . . 2 . . . . 2 . . . . . . 2 . . . . 2 . 2 Power 1 | . . . . . . . . . . . . . . . . . . . . . . . . . . . 1 . . . . . . . Propulsion 4 | . . . . . . . 1 1 . . . . . . 1 . . . . 1 . . . . . . . . . . . . . . Utility 11 | . . . 2 . . . 1 1 . . . . . . 1 . . . . 1 . . . . . . 1 . . . . 2 . 2 Weapon . | . . . . . . . . . . . . . . . . . . . . . . . . . . . . . . . . . . . Parts Attached 517 | 7 2 2 20 8 . . 18 7 . 13 3 8 . 16 13 15 8 . 9 20 3 3 6 9 4 21 37 2 55 79 15 45 36 33 Power 27 | 1 . 1 1 1 . . . . . 1 . . . 1 . . 1 . . . . . . . 1 . 2 . 1 8 3 3 . 2 Engine 3 | 1 . . 1 . . . . . . 1 . . . . . . . . . . . . . . . . . . . . . . . . Core 13 | . . 1 . 1 . . . . . . . . . . . . . . . . . . . . . . . . 1 6 2 1 . 1 Reactor 11 | . . . . . . . . . . . . . . 1 . . 1 . . . . . . . 1 . 2 . . 2 1 2 . 1 Propulsion 64 | 2 . . 3 1 . . 10 2 . 4 . . . . 4 1 . . 5 1 . . . . 2 . 3 1 10 6 1 5 3 . Treads 1 | . . . 1 . . . . . . . . . . . . . . . . . . . . . . . . . . . . . . . Leg 4 | . . . . . . . 2 . . . . . . . . . . . 2 . . . . . . . . . . . . . . . Wheel 7 | 2 . . 2 1 . . 2 . . . . . . . . . . . . . . . . . . . . . . . . . . . Hover 52 | . . . . . . . 6 2 . 4 . . . . 4 1 . . 3 1 . . . . 2 . 3 1 10 6 1 5 3 . Flight . | . . . . . . . . . . . . . . . . . . . . . . . . . . . . . . . . . . . Utility 256 | 1 2 . 6 . . . 2 3 . 4 2 5 . 10 5 8 5 . 2 11 3 2 . 5 1 15 24 1 22 45 6 29 18 19 Device 133 | . . . 3 . . . . 1 . 2 1 2 . 6 2 3 . . 1 4 2 1 . 3 1 9 14 . 15 25 3 14 10 11 Storage 55 | 1 2 . . . . . . . . . 1 1 . 4 2 2 2 . 1 6 . . . 2 . 5 5 . 3 8 1 4 3 2 Processor 6 | . . . 2 . . . . . . . . . . . . 1 . . . . . . . . . . . . . . . 2 1 . Hackware 5 | . . . . . . . 1 . . . . . . . . . . . . . . . . . . . 1 . 1 . . . . 2 Protection 57 | . . . 1 . . . 1 2 . 2 . 2 . . 1 2 3 . . 1 1 1 . . . 1 4 1 3 12 2 9 4 4 Artifact . | . . . . . . . . . . . . . . . . . . . . . . . . . . . . . . . . . . . Weapon 170 | 3 . 1 10 6 . . 6 2 . 4 1 3 . 5 4 6 2 . 2 8 . 1 6 4 . 6 8 . 22 20 5 8 15 12 Energy Gun 30 | 2 . 1 6 5 . . 3 2 . . . . . 1 . 1 . . 1 . . . . . . . . . . . 2 3 2 1 Energy Cannon 31 | . . . . . . . . . . . . 2 . 1 2 2 . . . . . . . . . 2 2 . 9 1 1 4 1 4 Ballistic Gun 37 | 1 . . 1 . . . . . . 1 . . . . . . 2 . 1 3 . 1 3 . . . 2 . 5 6 1 . 6 4 Ballistic Cannon 1 | . . . . . . . . . . . . . . . . . . . . . . . . . . . . . . . . . 1 . Launcher 41 | . . . 3 1 . . 2 . . 1 1 1 . 2 1 2 . . . . . . 3 3 . 3 . . 4 11 . 1 2 . Special Weapon 4 | . . . . . . . . . . . . . . . . . . . . 2 . . . . . . 1 . . . 1 . . . Impact Weapon . | . . . . . . . . . . . . . . . . . . . . . . . . . . . . . . . . . . . Slashing Weapon 26 | . . . . . . . 1 . . 2 . . . 1 1 1 . . . 3 . . . 1 . 1 3 . 4 2 . . 3 3 Piercing Weapon . | . . . . . . . . . . . . . . . . . . . . . . . . . . . . . . . . . . . Special Melee Weapon . | . . . . . . . . . . . . . . . . . . . . . . . . . . . . . . . . . . . Unidentified Prototypes 53 | . . . 1 . . . 2 . . 1 . . . . . 1 2 . 2 . 1 . . . 4 . 3 . 2 10 10 3 8 3 Parts Lost 63 | . 1 . 9 5 . . 4 2 . 2 . . . 2 1 2 . . . . . . . . . . . . 5 11 . 8 1 10 Power 11 | . 1 . 1 1 . . . . . 1 . . . . . . . . . . . . . . . . . . . 3 . 1 . 3 Propulsion 12 | . . . 2 1 . . 2 . . . . . . . 1 . . . . . . . . . . . . . 2 2 . . . 2 Utility 22 | . . . 2 . . . . 1 . 1 . . . 1 . 1 . . . . . . . . . . . . 1 4 . 6 1 4 Weapon 18 | . . . 4 3 . . 2 1 . . . . . 1 . 1 . . . . . . . . . . . . 2 2 . 1 . 1 Highest Loss Streak 9 | . 1 . 9 3 . . 4 2 . 1 . . . 1 1 1 . . . . . . . . . . . . 1 7 . 2 1 9 Average Slot Usage (%) 97 | . 89 91 94 97 100 100 93 99 100 99 100 100 100 99 98 92 93 93 93 100 99 100 100 100 96 100 97 100 99 93 90 95 95 96 Engine 1 | . 4 . 5 7 . . . . . 2 7 7 7 4 . . . . . . . . . . . . . . . . . . . . Core 2 | . . 6 5 3 11 11 9 7 7 4 . . . . . . . . . . . . . . . . . . 1 6 10 7 9 7 Reactor 4 | . . . . . . . . . . . . . . 2 6 6 6 6 6 5 5 5 5 5 5 5 10 10 8 3 2 4 4 3 Wheel 2 | . 28 28 17 21 22 22 5 . . . . . . . . . . . . . . . . . . . . . . . . . . . Hover 27 | . . . . . . . 13 30 30 30 30 30 30 30 31 26 26 26 26 35 35 35 35 35 35 35 31 31 30 30 30 27 27 25 Device 8 | . . . 7 11 11 11 3 6 7 6 6 7 7 6 12 11 1 . 6 4 9 7 11 10 7 7 7 10 8 8 7 13 7 6 Storage 21 | . 27 28 22 22 22 22 18 15 15 15 15 15 15 23 20 21 25 26 24 23 23 23 23 23 23 23 21 21 21 20 22 20 20 18 Processor 5 | . . . 5 11 11 11 9 7 7 7 7 7 7 7 6 6 6 6 6 5 5 5 5 5 5 5 5 5 5 3 . 3 11 12 Hackware 2 | . . . . . . . 5 7 7 7 7 2 . . . . . . . . . . . . . . 4 5 6 1 . . . 7 Protection 6 | . . . 5 . . . 8 7 7 7 7 11 15 7 6 6 12 13 7 11 6 8 5 5 5 7 7 5 4 6 7 8 5 4 Energy Gun 2 | . 14 13 13 17 11 11 13 8 15 4 . . . . . 2 . . . . . . . . . . . . . . . 1 . . Energy Cannon 2 | . . . . . . . . . . . . 5 7 5 9 9 . . . . . . . . . 4 . . 3 . 1 2 . 1 Ballistic Gun 2 | . 14 14 5 . . . . . . . . . . . . . 5 13 13 8 11 11 10 1 . . 1 . 1 3 3 . 3 1 Launcher 1 | . . . . 3 11 11 3 . . . 3 5 7 6 . . 7 . . . . . . 5 5 . . . . 2 . . . 2 Slashing Weapon 2 | . . . . . . . . 4 . 8 11 2 . 1 2 . . . . . . . . 2 5 4 5 10 4 3 5 3 2 1 Naked Turns . | . . . . . . . . . . . . . . . . . . . . . . . . . . . . . . . . . . . Heaviest Build 183 | 11 31 34 45 38 33 33 38 40 38 45 52 64 49 66 71 75 87 82 81 102 96 96 93 105 93 103 113 100 111 164 170 183 183 176 Greatest Support 208 | 32 32 32 32 26 26 26 55 61 50 55 55 55 55 55 86 94 94 94 96 111 111 111 111 111 111 101 113 113 128 177 208 208 192 192 Greatest Overweight (x) 2 | . . 1 2 2 1 1 2 . . . . 1 . 1 . . . . 1 . . . . . . 1 . . 1 1 . 1 1 . Average Overweight (x) . | . . . 1 1 1 1 . . . . . . . . . . . . . . . . . . . . . . . . . . . . Largest Inventory Capacity 28 | 6 14 14 14 14 14 14 14 14 14 14 14 14 14 14 18 14 18 18 22 24 24 24 24 24 24 24 26 24 26 26 26 28 28 28 Average Capacity 20 | 5 13 14 14 14 14 14 14 14 14 14 14 14 14 14 14 14 17 18 21 23 24 24 24 24 24 24 24 24 24 24 26 26 28 28 Most Carried 28 | 3 9 14 14 14 14 14 14 14 14 14 14 14 14 14 14 14 18 18 22 24 24 24 24 24 24 24 24 24 26 26 26 28 28 28 Average Carried 19 | 1 6 9 12 13 13 14 13 13 13 13 14 13 14 12 12 13 17 18 20 23 23 23 24 24 23 23 23 23 22 23 25 25 27 27 Final Capacity 28 | . . . . . . . . . . . . . . . . . . . . . . . . . . . . . . . . . . 28 Final Carried 28 | . . . . . . . . . . . . . . . . . . . . . . . . . . . . . . . . . . 28 Class Distribution -------------------- 31% | Scavenger-Mutant 29% | Mutant 18% | Hauler-Mutant 6% | Mechanic-Mutant 5% | Commander-Mutant 3% | Hacker-Mutant 3% | Hauler-Sprinter Dominant Class ---------------- Mutant | -10/Materials Mutant | -10/Mines Mutant | -9/Materials Mutant | -9/Mines Mutant | -9/Exiles Mutant | -8/Mines Scavenger-Mutant | -8/Materials Scavenger-Mutant | -7/Factory Scavenger-Mutant | -7/Waste Scavenger-Mutant | -7/Factory Mutant | -7/Lower Caves Scavenger-Mutant | -7/Lower Caves Scavenger-Mutant | -7/Data Miner Mutant | -6/Proximity Caves Mutant | -6/Factory Mutant | -6/Extension Scavenger-Mutant | -6/Cetus Scavenger-Mutant | -6/Archives Scavenger-Mutant | -6/Hub_04(d) Scavenger-Mutant | -5/Factory Scavenger-Mutant | -5/Waste Scavenger-Mutant | -5/Factory Scavenger-Mutant | -5/Upper Caves Hauler-Mutant | -5/Upper Caves Hauler-Mutant | -5/Zhirov Hauler-Mutant | -4/Proximity Caves Scavenger-Mutant | -4/Factory Hauler-Mutant | -4/Waste Hauler-Mutant | -4/Factory Hauler-Mutant | -4/Armory Generator-Mutant | -4/Lab Mechanic-Mutant | -3/Research Scavenger-Mutant | -3/Testing Hacker-Mutant | -2/Research Resources | -11 -10 -10 -9 -9 -9 -8 -8 -7 -7 -7 -7 -7 -7 -6 -6 -6 -6 -6 -6 -5 -5 -5 -5 -5 -5 -4 -4 -4 -4 -4 -4 -3 -3 -2 ----------- Run | Scr Mat Min Mat Min Exi Min Mat Fac Was Fac Low Low Dat Pro Fac Ext Cet Arc Hub Fac Was Fac Upp Upp Zhi Pro Fac Was Fac Arm Lab Res Tes Res Matter Collected 7725 | 270 30 28 211 147 . . 107 . . 291 70 125 . 255 50 248 164 84 200 437 104 . 289 171 . 296 495 20 717 1188 88 730 560 350 Remotely . | . . . . . . . . . . . . . . . . . . . . . . . . . . . . . . . . . . . Salvage Created 15294 | . 96 101 498 130 . . 440 63 . 235 174 140 . 639 95 697 832 200 708 200 329 . 387 187 . 1185 605 . 1679 2186 88 1182 1299 919 Parts 652 | . 4 4 30 9 . . 19 6 . 18 2 9 . 27 9 26 37 6 19 12 2 . 22 9 . 44 20 . 68 103 4 52 44 47 Haulers Intercepted 8 | . . . 1 . . . 1 . . . . . . . . . . . 3 . . . . . . . 1 . 1 . . 1 . . Recyclers Shooed 13 | . . . . . . . 1 . . . . . . . . 3 . . 1 . . . . . . . . . . . . 2 6 . Parts Field Recycled . | . . . . . . . . . . . . . . . . . . . . . . . . . . . . . . . . . . . Retrieved Matter . | . . . . . . . . . . . . . . . . . . . . . . . . . . . . . . . . . . . Parts Self-Destructed 48 | . . . . . . . . . . . 1 5 . 17 . . . . . . . . 16 3 . 6 . . . . . . . . Prevented 64 | . . . . . . . . . . . 3 3 . 14 . . . . . . . . 7 4 . 33 . . . . . . . . Kills | -11 -10 -10 -9 -9 -9 -8 -8 -7 -7 -7 -7 -7 -7 -6 -6 -6 -6 -6 -6 -5 -5 -5 -5 -5 -5 -4 -4 -4 -4 -4 -4 -3 -3 -2 ------- Run | Scr Mat Min Mat Min Exi Min Mat Fac Was Fac Low Low Dat Pro Fac Ext Cet Arc Hub Fac Was Fac Upp Upp Zhi Pro Fac Was Fac Arm Lab Res Tes Res Combat Hostiles Destroyed 241 | . 2 2 11 7 . . 11 1 . 5 3 5 . 17 5 9 12 2 3 3 . . 14 7 . 16 7 . 23 43 1 12 10 10 Melee 41 | . . . . . . . . . . 1 . . . . . . . . . . . . . . . . 4 . 6 21 1 8 . . Guns 43 | . 2 2 6 3 . . 3 1 . . . . . . . 1 . 2 3 3 . . 4 . . . 1 . 2 3 . . 3 4 Cannons 15 | . . . . . . . . . . . . 1 . 1 1 3 . . . . . . . . . 2 2 . . . . 3 1 1 AOE 98 | . . . 5 4 . . 8 . . 4 2 4 . 13 4 4 5 . . . . . 10 7 . 6 . . 6 14 . . 2 . Classes Destroyed 19 | . 1 . 6 1 . . . . . 3 . . . 1 1 2 1 . . . . . . . . . . . . 3 . . . . Worker 8 | . . . . . . . . . . 2 . . . . . . . . 1 1 . . . . . . . . 3 . . . 1 . Builder 5 | . . . 1 . . . . . . 2 . . . . . 1 . . . 1 . . . . . . . . . . . . . . Tunneler 1 | . . . . . . . . . . . . . . . 1 . . . . . . . . . . . . . . . . . . . Hauler 8 | . . . 1 . . . 1 . . . . . . . . . . . 3 . . . . . . . 1 . 1 . . 1 . . Recycler 7 | . . . . . . . . . . 1 . . . . . . . . 1 . . . . . . . . . . . . 1 4 . Mechanic 1 | . . . . . . . . . . . . . . . . . . . . . . . . . . . . . . 1 . . . . Operator 6 | . . . 1 . . . 1 . . . . . . . . . . 1 1 . . . . . . . . . 1 . . 1 . . Watcher 12 | . . . . . . . . . . . . . . . . 2 2 . . . . . . . . 2 . . 4 1 . 1 . . Swarmer 70 | . . . 3 4 . . . . . 3 . 4 . 8 4 . 3 . . . . . 14 6 . 4 . . 8 9 . . . . Saboteur 8 | . . . . . . . . . . . . . . . . . . . . . . . . . . . . . . 8 . . . . Grunt 79 | . 2 2 6 2 . . 10 . . . 3 . . 6 . 7 1 . 3 2 . . . . . 7 3 . 6 7 . 2 6 4 Brawler 5 | . . . 1 . . . . . . . . . . 1 . 1 . . . . . . . . . 1 . . . . . . . 1 Duelist 2 | . . . . . . . . . . . . . . . . . 1 . . . . . . . . . . . . 1 . . . . Sentry 27 | . . . 1 . . . 1 1 . 1 . 1 . 1 1 . . 2 . . . . . 1 . 4 1 . 6 3 . 3 . . Demolisher 2 | . . . . 1 . . . . . . . . . . . . . . . . . . . . . . . . . 1 . . . . Specialist 4 | . . . . . . . . . . . . . . . . . . . . . . . . . . . . . . 4 . . . . Hunter 4 | . . . . . . . . . . . . . . 1 . . . . . . . . . . . . . . . 2 . . . 1 Programmer 23 | . . . . . . . . . . 1 . . . . . . . . . 1 . . . . . . 3 . 3 8 . 2 2 3 Behemoth 2 | . . . . . . . . . . . . . . . . 1 . . . . . . . . . . . . . . . . . 1 Cetus Guard 7 | . . . . . . . . . . . . . . . . . 7 . . . . . . . . . . . . . . . . . Enhanced Grunt 1 | . . . . . . . . . . . . . . . . . . . 1 . . . . . . . . . . . . . . . Tracker 6 | . . . . . . . . . . . . . . . . . . . . . . . . . . . . . . . . 5 1 . Combat Programmer 1 | . . . . . . . . . . . . . . . . . . . . . . . . . . . . . . . . . 1 . Thug 1 | . . . 1 . . . . . . . . . . . . . . . . . . . . . . . . . . . . . . . Best Kill Streak 10 | . 2 2 5 4 . . 6 1 . 8 3 4 . 4 6 4 10 3 3 3 . . 5 4 . 4 2 . 9 7 1 4 6 4 Combat Bots Only 9 | . 2 2 5 4 . . 5 1 . 4 3 4 . 4 5 4 9 2 2 2 . . 5 4 . 4 2 . 8 7 1 4 6 4 Max Kills in Single Turn 5 | . 1 1 2 2 . . 3 1 . 5 1 4 . 3 3 3 5 1 2 1 . . 3 2 . 3 1 . 2 4 1 1 2 1 Gunslinging 1 | . . . . . . . . . . . . . . . . . . . . . . . 1 . . . . . . . . . . . Exploded 5 | . . . 2 2 . . 2 . . 2 1 4 . 3 2 3 5 . . . . . 3 2 . 3 . . 2 4 . . 2 . Melee 1 | . . . . . . . . . . 1 . . . . . . . . . . . . . . . . 1 . 1 1 1 1 . . Uniques/NPCs Destroyed 1 | . . . . . . . . . . . . . . . . . . . . . . . . . . . . . . . 1 . . . A5 (-4/Lab) Combat | -11 -10 -10 -9 -9 -9 -8 -8 -7 -7 -7 -7 -7 -7 -6 -6 -6 -6 -6 -6 -5 -5 -5 -5 -5 -5 -4 -4 -4 -4 -4 -4 -3 -3 -2 -------- Run | Scr Mat Min Mat Min Exi Min Mat Fac Was Fac Low Low Dat Pro Fac Ext Cet Arc Hub Fac Was Fac Upp Upp Zhi Pro Fac Was Fac Arm Lab Res Tes Res Damage Taken 16068 | . 81 80 848 378 . . 622 197 . 291 81 27 . 338 157 587 158 210 166 154 . 78 263 143 . 814 781 . 1718 2647 20 2186 702 2341 Core 1592 | . 11 10 170 100 . . 112 . . 45 . 6 . 40 33 134 14 . . 17 . 18 . 37 . 67 89 . 210 126 3 155 28 167 Absorbed by Shields 4844 | . . . . . . . . . . . . 31 . 189 71 339 158 . . 37 . . . 62 . 78 . . . 1270 20 1375 523 691 Core Remaining (%) 77 | 100 . 91 . . . 32 79 . . . . . . 87 . . . . 78 . . . . . . 86 . . . . 62 . 85 . Volleys Fired 503 | . 5 6 35 17 . . 25 5 . 3 5 2 . 28 8 37 7 8 23 17 8 6 15 6 . 37 24 . 39 46 . 24 32 35 Largest 2 | . 2 2 2 2 . . 2 2 . 1 1 2 . 2 2 2 2 2 2 2 2 2 2 2 . 2 2 . 2 2 . 1 2 2 Hottest 138 | . 70 70 130 80 . . 101 117 . 30 46 138 . 130 138 138 89 70 70 70 70 70 70 89 . 94 94 . 120 70 . 100 126 134 Shots Fired 760 | . 10 12 56 23 . . 33 10 . 3 5 3 . 34 12 69 13 16 46 30 16 13 22 9 . 39 32 . 62 52 1 23 50 66 Gun 412 | . 10 12 46 18 . . 26 10 . . . . . 4 . 8 . 16 46 26 16 13 14 . . . 21 . 20 26 1 4 34 41 Cannon 212 | . . . . . . . . . . . . 2 . 18 9 57 . . . . . . . . . 29 10 . 30 6 . 18 8 25 Launcher 131 | . . . 10 5 . . 7 . . 3 5 1 . 12 3 4 13 . . . . . 8 9 . 10 . . 12 20 . 1 8 . Special 5 | . . . . . . . . . . . . . . . . . . . . 4 . . . . . . 1 . . . . . . . Kinetic 293 | . 5 6 12 . . . . . . . . . . . . . . 16 46 26 16 13 14 . . . 21 . 20 26 1 . 33 38 Thermal 92 | . 5 6 26 . . . 14 8 . . . . . 4 . 8 . . . . . . . . . . . . . . . 13 8 . Explosive 35 | . . . . 5 . . 6 . . 3 . 1 . 7 3 . . . . . . . . 3 . . . . 4 2 . 1 . . Electromagnetic 335 | . . . 18 18 . . 13 2 . . 5 2 . 23 9 61 13 . . . . . 8 6 . 39 10 . 38 24 . 9 9 28 Robot Hit Streak 26 | . 6 12 11 6 . . 9 5 . 5 9 12 . 17 5 13 12 13 7 6 20 2 3 6 . 10 5 . 11 6 . 13 23 26 Robot Miss Streak 5 | . 1 . 5 1 . . 3 1 . . . . . 3 2 2 . 2 2 3 . 5 5 1 . 3 5 . 3 3 . 1 3 5 Penetration Max 1 | . . . . . . . . . . . . . . . . . . . 1 1 . . . . . . . . 1 1 . . 1 1 Secondary Targets 6 | . . . 1 . . . . . . . . . . . . . . 1 . 1 . . 1 . . . . . . . . . 2 . Max Gunslinging Chain 1 | . . . 1 . . . . . . . . . . . . . . 1 . 1 . . 1 . . . . . . . . . 1 . Shots Hit Robots 691 | . 8 10 34 14 . . 22 7 . 11 4 3 . 22 7 52 11 11 29 18 16 5 9 6 . 29 43 . 65 97 15 50 41 52 Core Hits 466 | . 5 5 21 12 . . 23 3 . 16 3 7 . 33 9 28 24 3 21 7 3 1 16 9 . 20 13 . 39 68 4 24 34 15 Critical Hits 56 | . . . . . . . . . . . . . . . . . . 5 7 1 1 . . . . 1 3 . 4 5 1 5 11 12 Critical Kills 20 | . . . . . . . . . . . . . . . . . . 2 3 1 . . . . . . . . 2 2 . 4 4 2 Critical Parts Destroyed 28 | . . . . . . . . . . . . . . . . . . 2 4 . . . . . . . 3 . 2 3 1 1 3 9 Melee Attacks 456 | . . . . . . . 2 4 . 24 . 2 . . 11 6 . . . 14 . . . 8 . 2 76 . 69 131 25 59 4 19 Impact . | . . . . . . . . . . . . . . . . . . . . . . . . . . . . . . . . . . . Slashing 456 | . . . . . . . 2 4 . 24 . 2 . . 11 6 . . . 14 . . . 8 . 2 76 . 69 131 25 59 4 19 Piercing . | . . . . . . . . . . . . . . . . . . . . . . . . . . . . . . . . . . . Sneak Attacks 8 | . . . . . . . . . . 1 . . . . . 1 . . . . . . . . . . 1 . 1 1 . 3 . . Combat Hostiles 1 | . . . . . . . . . . . . . . . . . . . . . . . . . . . . . . 1 . . . . Follow-up Attacks 2 | . . . . . . . . . . . . . . . . . . . . . . . . . . . 1 . 1 . . . . . Damage Inflicted 37364 | . 89 119 1141 445 . . 1253 93 . 851 341 231 . 1668 715 1895 1497 317 1123 422 410 129 894 822 . 2141 1824 . 4559 6370 1009 2788 2386 1832 Guns 7477 | . 89 119 491 156 . . 264 93 . . . . . 51 . 140 . 317 983 422 410 129 178 . . . 285 . 530 585 . 4 1146 1085 Cannons 5812 | . . . . . . . . . . . . 49 . 342 131 1039 . . . . . . . . . 1038 322 . 952 135 . 658 399 747 Explosions 13943 | . . . 650 289 . . 989 . . 482 341 182 . 1275 584 451 1497 . 140 . . . 716 822 . 1103 . . 1726 1855 . . 841 . Melee 10132 | . . . . . . . . . . 369 . . . . . 265 . . . . . . . . . . 1217 . 1351 3795 1009 2126 . . Ramming . | . . . . . . . . . . . . . . . . . . . . . . . . . . . . . . . . . . . Kinetic 6199 | . 38 45 103 . . . . . . . . . . . . . . 317 983 422 410 129 178 . . . 285 . 530 585 . . 1146 1028 Thermal 3542 | . 51 74 672 . . . 325 82 . . . . . 99 . 244 119 . . . . . 87 . . 270 . . 560 . . 560 399 . Explosive 4996 | . . . . 289 . . 686 . . 482 . 182 . 796 584 . . . . . . . . 568 . . . . 473 936 . . . . Electromagnetic 12495 | . . . 366 156 . . 242 11 . . 341 49 . 773 131 1386 1378 . 140 . . . 629 254 . 1871 322 . 1645 1054 . 102 841 804 Impact . | . . . . . . . . . . . . . . . . . . . . . . . . . . . . . . . . . . . Slashing 10132 | . . . . . . . . . . 369 . . . . . 265 . . . . . . . . . . 1217 . 1351 3795 1009 2126 . . Piercing . | . . . . . . . . . . . . . . . . . . . . . . . . . . . . . . . . . . . Highest Corruption 16 | . . . . . . . . . . . . . . 1 . . . . 1 5 5 5 5 2 . 2 1 1 2 11 11 10 16 6 Average Corruption 4 | . . . . . . . . . . . . . . 1 . . . . 1 4 5 5 2 1 . 1 1 1 1 8 11 5 13 1 Corruption Purged 6 | . . . . . . . . . . . . . . . . . . . . . . . 3 2 . . . . 1 . . . . . Effects 188 | . . . . . . . . . . . . . . . . . . . 2 12 5 9 7 1 . 10 3 . 8 61 13 19 34 4 Message Errors 27 | . . . . . . . . . . . . . . . . . . . 1 3 . 1 2 1 . 5 1 . 4 2 3 . 4 . Matter Fused 28 | . . . . . . . . . . . . . . . . . . . . 4 3 1 2 . . . . . . 7 1 8 2 . Heat Flow Errors 17 | . . . . . . . . . . . . . . . . . . . . 2 1 1 2 . . . . . . 6 1 3 1 . Energy Discharges 19 | . . . . . . . . . . . . . . . . . . . 1 . . 1 1 . . 2 . . 2 5 2 1 4 . Data Loss (minor) 20 | . . . . . . . . . . . . . . . . . . . . 2 . 1 . . . 3 . . 1 9 . 2 2 . Data Loss (major) 4 | . . . . . . . . . . . . . . . . . . . . . 1 1 . . . . . . . 1 . . 1 . Misfires 5 | . . . . . . . . . . . . . . . . . . . . . . 1 . . . . . . . 1 1 . 2 . Alerts 3 | . . . . . . . . . . . . . . . . . . . . . . . . . . . . . . 2 . . 1 . Misdirections 23 | . . . . . . . . . . . . . . . . . . . . . . . . . . . . . . 12 3 . 8 . Targeting Errors 38 | . . . . . . . . . . . . . . . . . . . . 1 . 2 . . . . 1 . 1 16 2 4 7 4 Weapon Failures 4 | . . . . . . . . . . . . . . . . . . . . . . . . . . . 1 . . . . 1 2 . Overload Shots 1 | . . . . . . . . . . . . . . . . . . . . . . . . . . . . . 1 . . . . . Overflow Damage 1927 | . . . 31 64 . . . . . 117 . . . 38 55 124 2 . . . . . 16 56 . 137 175 . 334 372 79 327 . . Projectiles 142 | . . . . . . . . . . . . . . 23 3 5 . . . . . . . . . 66 . . 28 17 . . . . Explosions 557 | . . . 31 64 . . . . . 4 . . . 15 52 . 2 . . . . . 16 56 . 71 . . 121 125 . . . . Melee 1228 | . . . . . . . . . . 113 . . . . . 119 . . . . . . . . . . 175 . 185 230 79 327 . . Knockbacks . | . . . . . . . . . . . . . . . . . . . . . . . . . . . . . . . . . . . Impact . | . . . . . . . . . . . . . . . . . . . . . . . . . . . . . . . . . . . Kinetic . | . . . . . . . . . . . . . . . . . . . . . . . . . . . . . . . . . . . Secondary . | . . . . . . . . . . . . . . . . . . . . . . . . . . . . . . . . . . . Self-Inflicted Damage 787 | . . . 122 5 . . 104 . . 25 30 . . . . . . . 91 . . . 1 32 . 83 . . 65 206 . . 23 . Shots 32 | . . . 5 1 . . 4 . . 1 1 . . . . . . . 1 . . . 1 2 . 5 . . 2 8 . . 1 . Rammed . | . . . . . . . . . . . . . . . . . . . . . . . . . . . . . . . . . . . Targets Rammed . | . . . . . . . . . . . . . . . . . . . . . . . . . . . . . . . . . . . Kicked . | . . . . . . . . . . . . . . . . . . . . . . . . . . . . . . . . . . . Crushed . | . . . . . . . . . . . . . . . . . . . . . . . . . . . . . . . . . . . Highest Temperature 421 | . 47 12 249 75 . . 237 243 . 6 27 77 . 240 143 317 49 42 12 229 157 176 187 6 . 12 138 . 65 276 421 412 251 318 Average Temperature 76 | . 33 6 82 37 . . 69 115 . 3 14 43 . 70 46 112 20 20 7 61 69 66 87 3 . 5 68 . 22 105 90 91 57 56 Received Heat Transfer 2536 | . 45 45 285 57 . . 270 66 . 90 27 8 . 87 11 120 4 24 36 48 . 36 . 4 . 103 171 . 318 303 . 183 62 133 Effects 7 | . . . . . . . . . . . . . . . . 3 . . . . . . . . . . . . . . . 2 . 2 Shutdowns 2 | . . . . . . . . . . . . . . . . . . . . . . . . . . . . . . . . 2 . . Energy Bleed 2 | . . . . . . . . . . . . . . . . . . . . . . . . . . . . . . . . . . 2 Interference 3 | . . . . . . . . . . . . . . . . 3 . . . . . . . . . . . . . . . . . . Siege Activations . | . . . . . . . . . . . . . . . . . . . . . . . . . . . . . . . . . . . Robots Corrupted 48 | . . . . . . . . . . . 1 . . 3 . 1 7 . 1 . . . . . . 10 . . 10 5 . 1 4 5 Combat Hostiles 44 | . . . . . . . . . . . 1 . . 3 . 1 7 . . . . . . . . 8 . . 9 5 . 1 4 5 Parts Fried 91 | . . . 2 . . . 1 . . . 1 1 . 3 . 7 6 . 4 . . . 3 4 . 15 4 . 15 7 . 1 13 4 Impact Corruptions . | . . . . . . . . . . . . . . . . . . . . . . . . . . . . . . . . . . . Robots Melted . | . . . . . . . . . . . . . . . . . . . . . . . . . . . . . . . . . . . Combat Hostiles . | . . . . . . . . . . . . . . . . . . . . . . . . . . . . . . . . . . . Parts Melted 3 | . . 1 1 . . . . . . . . . . . . . . . . . . . . . . . . . . . . 1 . . Heat Transferred 4662 | . 148 222 1390 . . . 533 185 . . . . . 161 . 396 200 . . . . . 100 . . 200 . . 350 . . 481 296 . Parts Sabotaged 5 | . . . . . . . . . . . . . . . . . . . . . . . . . . . . . . 5 . . . . Parts Stolen . | . . . . . . . . . . . . . . . . . . . . . . . . . . . . . . . . . . . Parts Stripped . | . . . . . . . . . . . . . . . . . . . . . . . . . . . . . . . . . . . Power Chain Reactions 21 | . . . 8 . . . 2 . . . . . . 1 . 2 1 . . . . . 2 . . 3 . . 2 . . . . . Missiles Intercepted . | . . . . . . . . . . . . . . . . . . . . . . . . . . . . . . . . . . . Alert | -11 -10 -10 -9 -9 -9 -8 -8 -7 -7 -7 -7 -7 -7 -6 -6 -6 -6 -6 -6 -5 -5 -5 -5 -5 -5 -4 -4 -4 -4 -4 -4 -3 -3 -2 ------- Run | Scr Mat Min Mat Min Exi Min Mat Fac Was Fac Low Low Dat Pro Fac Ext Cet Arc Hub Fac Was Fac Upp Upp Zhi Pro Fac Was Fac Arm Lab Res Tes Res Peak Influence 1179 | . 77 80 308 237 . . 346 184 79 234 . . . . 226 337 575 463 1120 610 213 212 . . . . 333 18 369 1179 . 307 403 841 Average Influence 258 | . 32 57 188 186 . . 112 161 75 99 . . . . 173 165 477 384 614 509 213 164 . . . . 176 18 110 685 . 148 134 649 Maximum Alert Level 4 | . . . 1 1 . . 1 . . 1 . . . . 1 1 2 2 4 2 1 1 . . . . 1 . 1 4 . 1 2 3 Low Security (%) 57 | . . . . . . . . . . . . . . . . . . . . . . . . . . . . . . . . . . . Level 1 22 | . . . . . . . . . . . . . . . . . . . . . . . . . . . . . . . . . . . Level 2 11 | . . . . . . . . . . . . . . . . . . . . . . . . . . . . . . . . . . . Level 3 7 | . . . . . . . . . . . . . . . . . . . . . . . . . . . . . . . . . . . Level 4 1 | . . . . . . . . . . . . . . . . . . . . . . . . . . . . . . . . . . . Level 5 . | . . . . . . . . . . . . . . . . . . . . . . . . . . . . . . . . . . . High Security . | . . . . . . . . . . . . . . . . . . . . . . . . . . . . . . . . . . . Max Security . | . . . . . . . . . . . . . . . . . . . . . . . . . . . . . . . . . . . Squads Dispatched 55 | . . . 3 . . . 4 1 . 1 . . . . . . . . 5 2 . . . . . . 3 . 5 8 . 15 3 5 Investigation 9 | . . . 2 . . . 3 1 . . . . . . . . . . . . . . . . . . . . 1 1 . 1 . . Extermination 12 | . . . . . . . . . . 1 . . . . . . . . 1 1 . . . . . . 3 . 2 3 . . . 1 Reinforcement 20 | . . . 1 . . . 1 . . . . . . . . . . . 4 1 . . . . . . . . 2 3 . 7 1 . Assault 2 | . . . . . . . . . . . . . . . . . . . . . . . . . . . . . . 1 . . . 1 Garrison . | . . . . . . . . . . . . . . . . . . . . . . . . . . . . . . . . . . . Intercept 12 | . . . . . . . . . . . . . . . . . . . . . . . . . . . . . . . . 7 2 3 Construction Impeded 3 | . . . . . . . 1 . . . . . . . . . . . . . . . . . . . . . 1 . . . 1 . Haulers Reinforced 6 | . . . . . . . . . . . . . . . . . . . 1 1 . . . . . . . . . . . 4 . . Stealth | -11 -10 -10 -9 -9 -9 -8 -8 -7 -7 -7 -7 -7 -7 -6 -6 -6 -6 -6 -6 -5 -5 -5 -5 -5 -5 -4 -4 -4 -4 -4 -4 -3 -3 -2 --------- Run | Scr Mat Min Mat Min Exi Min Mat Fac Was Fac Low Low Dat Pro Fac Ext Cet Arc Hub Fac Was Fac Upp Upp Zhi Pro Fac Was Fac Arm Lab Res Tes Res Distress Signals 26 | . 1 . 3 . . . 1 . . . . . . . . 1 2 . 2 2 . . . . . 1 1 . 1 5 . 4 . 2 Communications Jammed . | . . . . . . . . . . . . . . . . . . . . . . . . . . . . . . . . . . . Distress Signals . | . . . . . . . . . . . . . . . . . . . . . . . . . . . . . . . . . . . Times Spotted 451 | . 4 2 21 7 . . 17 1 5 13 4 4 . 23 8 31 15 4 14 9 . 3 12 8 . 22 17 . 33 88 1 32 26 27 Peak Tracking Total 19 | . 4 2 12 4 . . 5 1 5 7 4 4 . 4 5 4 6 2 5 4 . 2 5 5 . 5 3 . 9 19 1 8 5 14 Tactical Retreats 55 | . . . . . . . 1 . 1 4 1 . . 3 2 6 1 . 1 . . . 1 2 . 3 2 . 2 11 . 6 4 4 Traps | -11 -10 -10 -9 -9 -9 -8 -8 -7 -7 -7 -7 -7 -7 -6 -6 -6 -6 -6 -6 -5 -5 -5 -5 -5 -5 -4 -4 -4 -4 -4 -4 -3 -3 -2 ------- Run | Scr Mat Min Mat Min Exi Min Mat Fac Was Fac Low Low Dat Pro Fac Ext Cet Arc Hub Fac Was Fac Upp Upp Zhi Pro Fac Was Fac Arm Lab Res Tes Res Traps Triggered 15 | . . . 2 . . . 2 1 . 1 . . . . . 2 . . 1 2 . 1 . . . . 1 . 1 1 . . . . Indirectly 2 | . . . 2 . . . . . . . . . . . . . . . . . . . . . . . . . . . . . . . Trap Hack Attempts . | . . . . . . . . . . . . . . . . . . . . . . . . . . . . . . . . . . . Triggered . | . . . . . . . . . . . . . . . . . . . . . . . . . . . . . . . . . . . Disarmed 6 | . . . . . . . . . . . . . . . . . . . . . . . . . . . . . . . . . 6 . Reprogrammed . | . . . . . . . . . . . . . . . . . . . . . . . . . . . . . . . . . . . Reused . | . . . . . . . . . . . . . . . . . . . . . . . . . . . . . . . . . . . Traps Extracted . | . . . . . . . . . . . . . . . . . . . . . . . . . . . . . . . . . . . Installed . | . . . . . . . . . . . . . . . . . . . . . . . . . . . . . . . . . . . Triggered 2 | . . . . . . . . . . . 2 . . . . . . . . . . . . . . . . . . . . . . . Machines | -11 -10 -10 -9 -9 -9 -8 -8 -7 -7 -7 -7 -7 -7 -6 -6 -6 -6 -6 -6 -5 -5 -5 -5 -5 -5 -4 -4 -4 -4 -4 -4 -3 -3 -2 ---------- Run | Scr Mat Min Mat Min Exi Min Mat Fac Was Fac Low Low Dat Pro Fac Ext Cet Arc Hub Fac Was Fac Upp Upp Zhi Pro Fac Was Fac Arm Lab Res Tes Res Machines Disabled 54 | . . . 3 1 . . 2 . . . . . . . . 1 . 2 11 1 . . . . . 2 6 . 6 12 1 2 3 1 Max in Single Turn 6 | . . . 1 1 . . 1 . . . . . . . . 1 . 1 6 1 . . . . . 1 1 . 3 2 1 1 2 1 Garrison Access 2 | . . . . . . . . . . . . . . . . . . . . . . . . . . . . . 1 . . . . 1 Network Hub 1 | . . . . . . . . . . . . . . . . . . . 1 . . . . . . . . . . . . . . . Machines Sabotaged . | . . . . . . . . . . . . . . . . . . . . . . . . . . . . . . . . . . . Garrisons Compromised . | . . . . . . . . . . . . . . . . . . . . . . . . . . . . . . . . . . . Overloaded Fab Kills . | . . . . . . . . . . . . . . . . . . . . . . . . . . . . . . . . . . . Fab Network Shutdowns 1 | . . . . . . . . . . . . . . . . . . . . . . . . . . . . . . . . . . 1 Hacking | -11 -10 -10 -9 -9 -9 -8 -8 -7 -7 -7 -7 -7 -7 -6 -6 -6 -6 -6 -6 -5 -5 -5 -5 -5 -5 -4 -4 -4 -4 -4 -4 -3 -3 -2 --------- Run | Scr Mat Min Mat Min Exi Min Mat Fac Was Fac Low Low Dat Pro Fac Ext Cet Arc Hub Fac Was Fac Upp Upp Zhi Pro Fac Was Fac Arm Lab Res Tes Res Machines Accessed 95 | . 1 1 1 . 1 . 3 2 . 6 . . 4 . 9 4 2 . 1 8 . 4 . . 4 1 6 . 16 8 1 4 4 4 Terminals 52 | . 1 . . . . . 2 1 . 1 . . . . 6 4 2 . 1 6 . 3 . . . 1 3 . 9 5 . 3 3 1 Fabricators 10 | . . . . . . . . . . 2 . . . . . . . . . . . . . . . . 2 . 2 3 . . . 1 Repair Stations 11 | . . . 1 . . . . 1 . 1 . . . . 3 . . . . . . 1 . . . . 1 . 2 . . . . 1 Recycling Units 1 | . . . . . . . . . . 1 . . . . . . . . . . . . . . . . . . . . . . . . Scanalyzers 8 | . . . . . . . 1 . . 1 . . . . . . . . . 2 . . . . . . . . 2 . . 1 1 . Garrison Access 2 | . . . . . . . . . . . . . . . . . . . . . . . . . . . . . 1 . . . . 1 Total Hacks 322 | . 3 1 2 . 4 . 8 5 . 17 . . 27 . 26 8 2 . 2 19 . 12 . . 17 2 21 . 70 32 1 11 19 13 Successful 201 | . 2 1 2 . 4 . 5 1 . 11 . . 27 . 10 3 1 . 1 13 . 6 . . 17 1 13 . 44 18 1 4 9 7 Failed 121 | . 1 . . . . . 3 4 . 6 . . . . 16 5 1 . 1 6 . 6 . . . 1 8 . 26 14 . 7 10 6 Catastrophic 21 | . . . . . . . . . . . . . . . 1 2 . . . 1 . 3 . . . 1 1 . 3 2 . 2 4 1 Database Lockouts . | . . . . . . . . . . . . . . . . . . . . . . . . . . . . . . . . . . . Manual 119 | . 3 . . . . . 6 . . 2 . . . . 16 8 1 . . 7 . 7 . . . 1 7 . 33 15 1 6 6 . Terminals 163 | . 3 . . . . . 6 2 . 2 . . . . 20 8 2 . 2 10 . 7 . . . 2 13 . 42 18 . 10 14 2 Fabricators 41 | . . . . . . . . . . 6 . . . . . . . . . . . . . . . . 6 . 13 14 . . . 2 Repair Stations 38 | . . . 2 . . . . 3 . 3 . . . . 6 . . . . . . 5 . . . . 2 . 10 . . . . 7 Recycling Units 2 | . . . . . . . . . . 2 . . . . . . . . . . . . . . . . . . . . . . . . Scanalyzers 25 | . . . . . . . 2 . . 4 . . . . . . . . . 9 . . . . . . . . 4 . . 1 5 . Garrison Access 3 | . . . . . . . . . . . . . . . . . . . . . . . . . . . . . 1 . . . . 2 Terminal Hacks 91 | . 2 1 . . 4 . . . . . . . 27 . 3 1 1 . 1 2 . . . . 17 1 3 . 13 6 1 1 6 1 Record 23 | . . . . . 4 . . . . . . . 11 . . . . . . . . . . . 5 . . . 2 . 1 . . . Part Schematic 12 | . 1 . . . . . . . . . . . 6 . . . . . . . . . . . 4 . 1 . . . . . . . Robot Schematic 7 | . . . . . . . . . . . . . 7 . . . . . . . . . . . . . . . . . . . . . Robot Analysis 7 | . 1 . . . . . . . . . . . . . 1 1 . . . . . . . . 4 . . . . . . . . . Prototype ID Bank 9 | . . . . . . . . . . . . . 3 . . . . . . . . . . . 4 . . . . . . . 2 . Open Door 3 | . . 1 . . . . . . . . . . . . . . 1 . . . . . . . . 1 . . . . . . . . Branch Access Points 3 | . . . . . . . . . . . . . . . . . . . . . . . . . . . . . 1 . . 1 . 1 Emergency Access Points 1 | . . . . . . . . . . . . . . . . . . . . . . . . . . . . . . 1 . . . . Terminal Index 1 | . . . . . . . . . . . . . . . . . . . . . . . . . . . . . 1 . . . . . Fabricator Index 1 | . . . . . . . . . . . . . . . . . . . . . . . . . . . . . 1 . . . . . Repair Station Index 1 | . . . . . . . . . . . . . . . . . . . . . . . . . . . . . 1 . . . . . Scanalyzer Index 1 | . . . . . . . . . . . . . . . . . . . . . . . . . . . . . 1 . . . . . Alert Level 2 | . . . . . . . . . . . . . . . . . . . . 1 . . . . . . . . . . . . 1 . Unreport Threat 9 | . . . . . . . . . . . . . . . 1 . . . . 1 . . . . . . 1 . 2 3 . . 1 . Locate Traps 4 | . . . . . . . . . . . . . . . 1 . . . 1 . . . . . . . . . . 1 . . 1 . Disarm Traps 1 | . . . . . . . . . . . . . . . . . . . . . . . . . . . . . . . . . 1 . Recall Investigation 1 | . . . . . . . . . . . . . . . . . . . . . . . . . . . . . 1 . . . . . Recall Extermination 2 | . . . . . . . . . . . . . . . . . . . . . . . . . . . . . 1 1 . . . . Recall Reinforcements 1 | . . . . . . . . . . . . . . . . . . . . . . . . . . . . . 1 . . . . . Hauler Manifests 1 | . . . . . . . . . . . . . . . . . . . . . . . . . . . 1 . . . . . . . Registered Prototypes 1 | . . . . . . . . . . . . . . . . . . . . . . . . . . . . . 1 . . . . . Fabricator Hacks 26 | . . . . . . . . . . 3 . . . . . . . . . . . . . . . . 4 . 8 9 . . . 2 Network Status 3 | . . . . . . . . . . . . . . . . . . . . . . . . . . . . . 2 1 . . . . Load Schematic 9 | . . . . . . . . . . 1 . . . . . . . . . . . . . . . . 2 . 1 4 . . . 1 Build 14 | . . . . . . . . . . 2 . . . . . . . . . . . . . . . . 2 . 5 4 . . . 1 Repair Station Hacks 25 | . . . 2 . . . . 1 . 3 . . . . 2 . . . . . . 4 . . . . 2 . 8 . . . . 3 Scan Component 14 | . . . 1 . . . . 1 . 2 . . . . 1 . . . . . . 2 . . . . 1 . 4 . . . . 2 Repair 11 | . . . 1 . . . . . . 1 . . . . 1 . . . . . . 2 . . . . 1 . 4 . . . . 1 Recycling Unit Hacks 2 | . . . . . . . . . . 2 . . . . . . . . . . . . . . . . . . . . . . . . Process 1 | . . . . . . . . . . 1 . . . . . . . . . . . . . . . . . . . . . . . . Retrieve Matter 1 | . . . . . . . . . . 1 . . . . . . . . . . . . . . . . . . . . . . . . Scanalyzer 16 | . . . . . . . 2 . . 2 . . . . . . . . . 8 . . . . . . . . 3 . . . 1 . Insert Component 9 | . . . . . . . 1 . . 1 . . . . . . . . . 4 . . . . . . . . 2 . . . 1 . Analyze 7 | . . . . . . . 1 . . 1 . . . . . . . . . 4 . . . . . . . . 1 . . . . . Garrison Access Hacks 2 | . . . . . . . . . . . . . . . . . . . . . . . . . . . . . 1 . . . . 1 Seal Access 2 | . . . . . . . . . . . . . . . . . . . . . . . . . . . . . 1 . . . . 1 Unauthorized Hacks 110 | . . . . . . . 7 . . 2 . . . . 17 6 . . . 9 . 9 . . . . 9 . 25 12 . 8 6 . Terminals 36 | . . . . . . . 3 . . 1 . . . . 5 2 . . . 3 . 2 . . . . 4 . 8 3 . 3 2 . Track 9 | . . . . . . . 1 . . . . . . . . . . . . 1 . . . . . . 2 . 2 2 . 1 . . Assimilate 5 | . . . . . . . 2 . . . . . . . . . . . . . . . . . . . . . 3 . . . . . Botnet 16 | . . . . . . . . . . 1 . . . . 4 2 . . . 2 . 1 . . . . 1 . 2 1 . 1 1 . Operators 6 | . . . . . . . . . . . . . . . 1 . . . . . . 1 . . . . 1 . 1 . . 1 1 . Fabricators 3 | . . . . . . . . . . . . . . . . . . . . . . . . . . . . . 3 . . . . . Prioritize 2 | . . . . . . . . . . . . . . . . . . . . . . . . . . . . . 2 . . . . . Siphon 1 | . . . . . . . . . . . . . . . . . . . . . . . . . . . . . 1 . . . . . Repair Stations . | . . . . . . . . . . . . . . . . . . . . . . . . . . . . . . . . . . . Recycling Units . | . . . . . . . . . . . . . . . . . . . . . . . . . . . . . . . . . . . Scanalyzers . | . . . . . . . . . . . . . . . . . . . . . . . . . . . . . . . . . . . Garrison Access . | . . . . . . . . . . . . . . . . . . . . . . . . . . . . . . . . . . . Data Cores Recovered . | . . . . . . . . . . . . . . . . . . . . . . . . . . . . . . . . . . . Used . | . . . . . . . . . . . . . . . . . . . . . . . . . . . . . . . . . . . Hacking Detections 68 | . 1 . . . . . 2 2 . 4 . . . . 9 4 1 . 1 7 . 3 . . . . 5 . 14 5 . 3 4 3 Full Trace Events 3 | . . . . . . . 1 1 . . . . . . . . . . . . . . . . . . . . . 1 . . . . Feedback Events . | . . . . . . . . . . . . . . . . . . . . . . . . . . . . . . . . . . . Feedback Blocked . | . . . . . . . . . . . . . . . . . . . . . . . . . . . . . . . . . . . Robot Schematics Acquired 7 | . . . . . . . . . . . . . 7 . . . . . . . . . . . . . . . . . . . . . Robots Built . | . . . . . . . . . . . . . . . . . . . . . . . . . . . . . . . . . . . Matter . | . . . . . . . . . . . . . . . . . . . . . . . . . . . . . . . . . . . Time . | . . . . . . . . . . . . . . . . . . . . . . . . . . . . . . . . . . . Total Robot Build Rating . | . . . . . . . . . . . . . . . . . . . . . . . . . . . . . . . . . . . Part Schematics Acquired 18 | . 1 . . . . . 1 . . 1 . . 6 . . . . . . 3 . . . . 4 . 1 . 1 . . . . . Parts Built 20 | . . . . . . . . . . 4 . . . . . . . . . . . . . . . . 2 . 7 6 . . . 1 Matter 3348 | . . . . . . . . . . 424 . . . . . . . . . . . . . . . . 570 . 972 1097 . . . 285 Time 1340 | . . . . . . . . . . 164 . . . . . . . . . . . . . . . . 152 . 416 558 . . . 50 Total Part Build Rating 151 | . . . . . . . . . . 24 . . . . . . . . . . . . . . . . 10 . 63 49 . . . 5 Parts Repaired 10 | . . . 1 . . . . . . 1 . . . . 1 . . . . . . 2 . . . . 1 . 3 . . . . 1 Time 567 | . . . 38 . . . . . . 28 . . . . 50 . . . . . . 198 . . . . 40 . 184 . . . . 29 Parts Recycled . | . . . . . . . . . . . . . . . . . . . . . . . . . . . . . . . . . . . Recycled Matter . | . . . . . . . . . . . . . . . . . . . . . . . . . . . . . . . . . . . Retrieved Matter . | . . . . . . . . . . . . . . . . . . . . . . . . . . . . . . . . . . . Retrieved Components . | . . . . . . . . . . . . . . . . . . . . . . . . . . . . . . . . . . . Parts Scanalyzed 7 | . . . . . . . 1 . . 1 . . . . . . . . . 4 . . . . . . . . 1 . . . . . Part Schematics Acquired 6 | . . . . . . . 1 . . 1 . . . . . . . . . 3 . . . . . . . . 1 . . . . . Parts Damaged 1 | . . . . . . . . . . . . . . . . . . . . 1 . . . . . . . . . . . . . . Bothacking | -11 -10 -10 -9 -9 -9 -8 -8 -7 -7 -7 -7 -7 -7 -6 -6 -6 -6 -6 -6 -5 -5 -5 -5 -5 -5 -4 -4 -4 -4 -4 -4 -3 -3 -2 ------------ Run | Scr Mat Min Mat Min Exi Min Mat Fac Was Fac Low Low Dat Pro Fac Ext Cet Arc Hub Fac Was Fac Upp Upp Zhi Pro Fac Was Fac Arm Lab Res Tes Res Used RIF Installer . | . . . . . . . . . . . . . . . . . . . . . . . . . . . . . . . . . . . Robots Hacked 2 | . . . . . . . . . . . . . . . . . . . . 1 . . . . . . 1 . . . . . . . Non-combat 2 | . . . . . . . . . . . . . . . . . . . . 1 . . . . . . 1 . . . . . . . Combat . | . . . . . . . . . . . . . . . . . . . . . . . . . . . . . . . . . . . Robot Hacks Applied 2 | . . . . . . . . . . . . . . . . . . . . 1 . . . . . . 1 . . . . . . . find_chute 2 | . . . . . . . . . . . . . . . . . . . . 1 . . . . . . 1 . . . . . . . Relay Couplers Released 2 | . . . . . . . . . . . . . . . . . . . . . . . . . . . . . 2 . . . . . Machine Destruction 2 | . . . . . . . . . . . . . . . . . . . . . . . . . . . . . 2 . . . . . Robots Rewired 28 | . . . . . . . . . . . . . . . . 13 . . . 1 . . . . . 5 . . . 9 . . . . Allies Hacked 1 | . . . . . . . . . . . . . . . . . . . . . . . . . . . . . . 1 . . . . Hacks Repelled . | . . . . . . . . . . . . . . . . . . . . . . . . . . . . . . . . . . . Allies | -11 -10 -10 -9 -9 -9 -8 -8 -7 -7 -7 -7 -7 -7 -6 -6 -6 -6 -6 -6 -5 -5 -5 -5 -5 -5 -4 -4 -4 -4 -4 -4 -3 -3 -2 -------- Run | Scr Mat Min Mat Min Exi Min Mat Fac Was Fac Low Low Dat Pro Fac Ext Cet Arc Hub Fac Was Fac Upp Upp Zhi Pro Fac Was Fac Arm Lab Res Tes Res Total Allies 60 | . . . . . . . 1 . . . . . . 1 . 14 5 . . 1 21 . . . . 5 . . 3 9 . . . . Largest Group 21 | . . . . . . . 1 . . . . . . 1 . 9 10 7 6 4 21 3 . . . 5 5 . 2 4 . . . . Highest-Rated Group 913 | . . . . . . . 10 . . . . . . 94 . 280 744 657 507 286 913 75 . . . 60 60 . 36 144 . . . . Highest-Rated Ally 156 | . . . . . . . 10 . . . . . . 94 . 156 156 150 94 94 94 25 . . . 12 12 . 26 60 . . . . Total Orders 12 | . . . . . . . . . . . . . . . . . 3 . . 1 . . . . . . . . 8 . . . . . STAY 4 | . . . . . . . . . . . . . . . . . 3 . . . . . . . . . . . 1 . . . . . GOTO 5 | . . . . . . . . . . . . . . . . . . . . 1 . . . . . . . . 4 . . . . . FOLLOW 3 | . . . . . . . . . . . . . . . . . . . . . . . . . . . . . 3 . . . . . Ally Attacks 352 | . . . . . . . . . . . . . . 16 . 126 10 26 50 26 . 12 . . . 10 40 . . 36 . . . . Total Damage 8451 | . . . . . . . . . . . . . . 421 . 2628 295 719 1737 929 . 111 . . . 80 575 . . 956 . . . . Kills 55 | . . . . . . . . . . . . . . 3 . 20 2 2 13 7 . 1 . . . . 3 . . 4 . . . . Allies Corrupted 4 | . . . . . . . . . . . . . . . . . . . 3 . . . . . . . . . . 1 . . . . Allies Melted . | . . . . . . . . . . . . . . . . . . . . . . . . . . . . . . . . . . . Intel | -11 -10 -10 -9 -9 -9 -8 -8 -7 -7 -7 -7 -7 -7 -6 -6 -6 -6 -6 -6 -5 -5 -5 -5 -5 -5 -4 -4 -4 -4 -4 -4 -3 -3 -2 ------- Run | Scr Mat Min Mat Min Exi Min Mat Fac Was Fac Low Low Dat Pro Fac Ext Cet Arc Hub Fac Was Fac Upp Upp Zhi Pro Fac Was Fac Arm Lab Res Tes Res Robot Analysis Total 7 | . 1 . . . . . . . . . . . . . 1 1 . . . . . . . . 4 . . . . . . . . . Derelict Logs Recovered 13 | . . . . 2 . . . . . . 1 1 . 3 . . . . . . . . 2 2 . 2 . . . . . . . . Drone Launches . | . . . . . . . . . . . . . . . . . . . . . . . . . . . . . . . . . . . Drone Recoveries . | . . . . . . . . . . . . . . . . . . . . . . . . . . . . . . . . . . . Exploration | -11 -10 -10 -9 -9 -9 -8 -8 -7 -7 -7 -7 -7 -7 -6 -6 -6 -6 -6 -6 -5 -5 -5 -5 -5 -5 -4 -4 -4 -4 -4 -4 -3 -3 -2 ------------- Run | Scr Mat Min Mat Min Exi Min Mat Fac Was Fac Low Low Dat Pro Fac Ext Cet Arc Hub Fac Was Fac Upp Upp Zhi Pro Fac Was Fac Arm Lab Res Tes Res Turns Passed 15755 | 57 208 166 355 348 158 124 290 167 144 700 559 466 42 1141 453 1299 330 61 316 572 157 316 436 491 72 806 830 124 1461 1106 262 806 393 539 Spaces Moved 17642 | 45 155 119 143 283 156 125 212 196 218 777 757 740 79 1031 558 1016 268 49 258 667 278 487 758 876 135 1130 1121 304 1369 1147 322 970 472 421 Core 1 | 1 . . . . . . . . . . . . . . . . . . . . . . . . . . . . . . . . . . Treads 39 | . . . 39 . . . . . . . . . . . . . . . . . . . . . . . . . . . . . . . Legs . | . . . . . . . . . . . . . . . . . . . . . . . . . . . . . . . . . . . Wheels 1043 | 44 155 119 104 283 156 125 57 . . . . . . . . . . . . . . . . . . . . . . . . . . . Hover 16559 | . . . . . . . 155 196 218 777 757 740 79 1031 558 1016 268 49 258 667 278 487 758 876 135 1130 1121 304 1369 1147 322 970 472 421 Flight . | . . . . . . . . . . . . . . . . . . . . . . . . . . . . . . . . . . . Fastest Speed 16 | 50 100 100 100 100 100 100 62 50 50 50 53 53 53 53 52 58 63 63 52 45 45 45 45 45 35 35 40 36 16 31 38 40 40 40 Average Speed 50 | 98 100 104 126 101 100 100 79 51 50 51 53 53 53 69 53 58 63 63 62 45 45 45 45 45 41 35 40 38 36 36 38 40 42 40 Slowest Speed 180 | 100 100 110 180 120 100 100 120 55 50 53 53 115 53 115 58 63 63 63 113 45 45 45 45 45 45 88 40 40 91 108 40 152 152 40 Overloaded Moves 4 | . . . . . . . . . . . . . . . . . . . . . . . . . . . . . 4 . . . . . Propulsion Burnouts . | . . . . . . . . . . . . . . . . . . . . . . . . . . . . . . . . . . . Robots Hopped 1 | . . . . . . . . . . . . . . . . . . . . . . 1 . . . . . . . . . . . . Cave-ins Triggered . | . . . . . . . . . . . . . . . . . . . . . . . . . . . . . . . . . . . Exploration Rate (%) 51 | 4 34 27 23 48 50 31 34 6 80 28 87 85 68 92 19 81 83 69 29 19 92 14 77 90 60 75 26 90 36 59 97 25 63 9 Regions Visited 34 Branch Regions 19 Pre-discovered Areas 5 | . . . . . 1 . . . . . . . 1 . . . . . . . . . . . 3 . . . . . . . . . Known Exits Taken 24 | . . . 1 1 1 1 1 . . 1 1 1 1 1 1 1 1 1 1 . . 1 1 1 1 1 . . 1 . 1 1 1 . Unknown Exits Taken 4 | 1 1 1 . . . . . . . . . . . . . . . . . . . . . . . . . . . 1 . . . . Scrap Searched 14 | . . 2 . . . . . . . . 2 2 . 1 . . . . . . . . . 4 . 3 . . . . . . . . Spaces Dug 191 | . . . . . . . 4 4 . 16 . 2 . . 11 . . . . 14 . . . 8 . . 35 . 30 30 . 15 3 19 Terrain Destroyed 806 | . . . 29 38 . . 64 4 . 31 . 13 . 49 42 5 3 1 189 23 . 9 5 49 . 11 45 . 74 76 . 24 3 19 Melee 189 | . . . . . . . 2 4 . 16 . 2 . . 11 . . . . 14 . . . 8 . . 35 . 30 30 . 15 3 19 Projectile 55 | . . . . . . . . . . . . . . . . . . 1 12 9 . 9 5 . . . 10 . 5 4 . . . . AOE 562 | . . . 29 38 . . 62 . . 15 . 11 . 49 31 5 3 . 177 . . . . 41 . 11 . . 39 42 . 9 . . Actions | -11 -10 -10 -9 -9 -9 -8 -8 -7 -7 -7 -7 -7 -7 -6 -6 -6 -6 -6 -6 -5 -5 -5 -5 -5 -5 -4 -4 -4 -4 -4 -4 -3 -3 -2 --------- Run | Scr Mat Min Mat Min Exi Min Mat Fac Was Fac Low Low Dat Pro Fac Ext Cet Arc Hub Fac Was Fac Upp Upp Zhi Pro Fac Was Fac Arm Lab Res Tes Res Total 22972 | 54 197 149 258 319 158 124 295 245 253 1032 907 800 78 1411 678 1641 415 62 364 887 293 569 827 946 151 1487 1354 311 2162 1572 422 1262 602 687 Wait 3252 | . 29 15 42 6 . . 28 21 32 190 143 46 . 336 81 440 113 6 62 149 . 71 49 46 2 251 67 . 580 71 34 142 36 164 Move 17609 | 44 154 118 142 282 155 124 211 196 217 776 756 739 78 1030 557 1015 267 48 257 667 277 484 757 875 134 1129 1121 303 1368 1146 321 969 471 421 Hop 1 | . . . . . . . . . . . . . . . . . . . . . . 1 . . . . . . . . . . . . Pick Up 194 | 3 6 6 13 5 2 . 6 8 2 8 . 1 . . 4 4 10 . 6 11 1 3 . 1 4 1 13 2 24 21 9 7 4 9 Fast Attach 96 | 6 1 2 4 . . . 1 . . 2 . . . 1 2 2 2 . 6 . 2 2 . . 4 . 4 . 9 13 9 10 12 2 Attach 120 | . . . 10 5 . . 9 4 . 2 . 1 . 2 4 2 . . . 2 . . . . 1 . 8 2 11 24 5 12 9 7 Detach 41 | . . . 2 . . . 4 . . . . 1 . . 2 . . . . . 1 . . . . . 3 . 5 10 1 7 5 . Swap 304 | 1 1 . 6 3 . . 8 3 . 9 3 7 . 13 7 11 6 . 3 18 1 1 6 9 . 21 25 . 35 42 3 23 15 24 Drop 179 | . 1 2 4 1 1 . 1 4 2 10 . 1 . 1 2 6 10 . 7 9 3 1 . 1 6 1 15 4 24 18 15 9 14 6 Fire 503 | . 5 6 35 17 . . 25 5 . 3 5 2 . 28 8 37 7 8 23 17 8 6 15 6 . 37 24 . 39 46 . 24 32 35 Melee 452 | . . . . . . . 2 4 . 24 . 2 . . 11 6 . . . 14 . . . 8 . 2 74 . 67 131 25 59 4 19 Ram . | . . . . . . . . . . . . . . . . . . . . . . . . . . . . . . . . . . . Kick . | . . . . . . . . . . . . . . . . . . . . . . . . . . . . . . . . . . . Crush . | . . . . . . . . . . . . . . . . . . . . . . . . . . . . . . . . . . . Escape Stasis 18 | . . . . . . . . . . 8 . . . . . 8 . . . . . . . . . . . . . 2 . . . . Rewire 203 | . . . . . . . . . . . . . . . . 110 . . . . . . . . . 45 . . . 48 . . . . Trap . | . . . . . . . . . . . . . . . . . . . . . . . . . . . . . . . . . . . Miscellaneous . | . . . . . . . . . . . . . . . . . . . . . . . . . . . . . . . . . . . Route ------- -11/Scrapyard -10/Materials -10/Mines -9/Materials -9/Mines (discovered 3 exits: *Mat x2 / *Exi) -9/Exiles -8/Mines -8/Materials -7/Factory -7/Waste -7/Factory (discovered 3 exits: *Fac x2 / *Low) -7/Lower Caves -7/Lower Caves -7/Data Miner -6/Proximity Caves -6/Factory (discovered 4 exits: *Fac / Low / *Ext x2) -6/Extension (discovered 3 exits: *Fac x2 / *Cet) -6/Cetus (discovered 2 exits: *Fac / *Arc) -6/Archives -6/Hub_04(d) -5/Factory -5/Waste -5/Factory -5/Upper Caves -5/Upper Caves (discovered 2 exits: *Fac / *Zhi) -5/Zhirov -4/Proximity Caves -4/Factory (discovered 2 exits: Res / Upp) -4/Waste -4/Factory (discovered 4 exits: *Res / Upp x2 / *Arm) -4/Armory (discovered 2 exits: *Res / *Lab) -4/Lab -3/Research (discovered 3 exits: *Res / *Tes x2) -3/Testing -2/Research (discovered 2 exits: Qua x2) History --------- Turn | Location | Event 25 | -11/Scrapyard | Discovered new exit (range 15) 58 | -11/Scrapyard | Entered Materials 261 | -10/Materials | Discovered new exit (range 6) 266 | -10/Materials | Entered Mines 318 | -10/Mines | Build established: Mutant 398 | -10/Mines | Discovered new exit (range 10) 408 | -10/Mines | Met a Derelict who couldn't figure out how to use a Trap Extractor 432 | -10/Mines | Entered Materials 432 | -9/Materials | Evolved 2 slots: Utility x2 481 | -9/Materials | Repaired Shock Bomb Launcher 691 | -9/Materials | Lost 9 parts (1p2n2u4w) 779 | -9/Materials | Discovered new exit (range 9) 786 | -9/Materials | Identified exit to Mines 787 | -9/Materials | Entered Mines 825 | -9/Mines | Found a hidden stash of uninstalled traps 844 | -9/Mines | Learned 4 Materials zone layouts 851 | -9/Mines | Deemed a non-threat by the Exiles lab entrance 851 | -9/Mines | Discovered new exit (range 5) 854 | -9/Mines | Identified exit to Exiles 919 | -9/Mines | Discovered new exit (range 6) 928 | -9/Mines | Identified exit to Materials 935 | -9/Mines | Assembled infested the area 963 | -9/Mines | Core integrity fell below 50% 980 | -9/Mines | Discovered exit to Materials (range 15) 996 | -9/Mines | Lost 3 parts (1n2w) 1135 | -9/Mines | Entered Exiles 1159 | -9/Exiles | Met 8R-AWN 1177 | -9/Exiles | Met EX-HEX 1205 | -9/Exiles | Met EX-BIN 1219 | -9/Exiles | Met EX-DEC 1223 | -9/Exiles | Learned location of Zion (-6) 1281 | -9/Exiles | Discovered new exit (range 14) 1292 | -9/Exiles | Identified exit to Mines 1293 | -9/Exiles | Entered Mines 1392 | -8/Mines | Discovered exit to Materials (range 6) 1417 | -8/Mines | Entered Materials 1417 | -8/Materials | Evolved 2 slots: Propulsion x1, Utility x1 1418 | -8/Materials | Identified exit to Factory 1632 | -8/Materials | Lost 4 parts (2n2w) 1707 | -8/Materials | Entered Factory 1707 | -7/Factory | Evolved 2 slots: Propulsion x1, Utility x1 1708 | -7/Factory | Identified exit to Storage 1874 | -7/Factory | Sucked down chute 1874 | -7/Factory | Entered Waste 1911 | -7/Waste | Spotted C-40 Crusher 1912 | -7/Waste | Spotted C-40 Crusher 1931 | -7/Waste | Build established: Scavenger-Mutant 1960 | -7/Waste | Spotted C-40 Crusher 1966 | -7/Waste | Spotted C-40 Crusher 1979 | -7/Waste | Spotted C-40 Crusher 1984 | -7/Waste | Spotted C-40 Crusher 2002 | -7/Waste | Discovered new exit (range 10) 2018 | -7/Waste | Identified exit to Factory 2018 | -7/Waste | Entered Factory 2030 | -7/Factory | Discovered new exit (range 9) 2034 | -7/Factory | Identified exit to Factory 2255 | -7/Factory | Repaired Hvy. Shock Bomb Launcher 2385 | -7/Factory | Discovered exit to Factory (range 16) 2507 | -7/Factory | Fabricated Cmb. Airjet (x2) 2593 | -7/Factory | Discovered new exit (range 8) 2596 | -7/Factory | Identified exit to Lower Caves 2701 | -7/Factory | Build established: Mutant 2704 | -7/Factory | Fabricated Imp. Force Field (x2) 2718 | -7/Factory | Entered Lower Caves 2795 | -7/Lower Caves | Learned Factory interactive machine intel 3124 | -7/Lower Caves | Discovered new exit (range 11) 3197 | -7/Lower Caves | Identified exit to Lower Caves 3277 | -7/Lower Caves | Entered another Lower Caves area 3336 | -7/Lower Caves | Learned 8 Factory zone layouts 3671 | -7/Lower Caves | Discovered new exit (range 14) 3726 | -7/Lower Caves | Identified exit to Data Miner 3743 | -7/Lower Caves | Entered Data Miner 3743 | -7/Data Miner | Discovered new exit (range 6) 3748 | -7/Data Miner | Identified exit to Proximity Caves 3755 | -7/Data Miner | Met Data Miner 3766 | -7/Data Miner | Learned location of Section 7 (-2) 3766 | -7/Data Miner | Acquired the access code to Warlord's prototype stash 3773 | -7/Data Miner | Received God Mode back door access code from Data Miner 3785 | -7/Data Miner | Entered Proximity Caves 3787 | -6/Proximity Caves | Attracted the attention of an 0b10 checkpoint 4249 | -6/Proximity Caves | Received a Behemoth hack from an annoying Tinkerer 4269 | -6/Proximity Caves | Escorted by Enhanced Grunt 4442 | -6/Proximity Caves | Discovered exit to Factory (range 15) 4443 | -6/Proximity Caves | Learned Factory stockpile data 4564 | -6/Proximity Caves | Learned Factory stockpile data 4926 | -6/Proximity Caves | Entered Factory 4926 | -6/Factory | Evolved 2 slots: Propulsion x1, Utility x1 4927 | -6/Factory | Identified exit to Lower Caves 4929 | -6/Factory | Loaded intel: 46 interactive machine locations 5123 | -6/Factory | Discovered new exit (range 10) 5149 | -6/Factory | Discovered new exit (range 16) 5194 | -6/Factory | Identified exit to Factory 5249 | -6/Factory | Repaired Cmb. Airjet 5358 | -6/Factory | Discovered new exit (range 4) 5360 | -6/Factory | Identified exit to Extension 5379 | -6/Factory | Entered Extension 6003 | -6/Extension | Build established: Commander-Mutant 6107 | -6/Extension | Spotted B-75 Beast 6120 | -6/Extension | Allies destroyed B-75 Beast 6141 | -6/Extension | Spotted B-75 Beast 6325 | -6/Extension | Destroyed B-75 Beast 6377 | -6/Extension | Discovered exit to Factory (range 3) 6436 | -6/Extension | Build established: Mutant 6521 | -6/Extension | Rescued A7 6639 | -6/Extension | Discovered new exit (range 15) 6640 | -6/Extension | Discovered exit to Factory (range 15) 6660 | -6/Extension | Identified exit to Cetus 6678 | -6/Extension | Entered Cetus 6678 | -6/Cetus | Accompanied by 5 allies 6683 | -6/Cetus | Acquired a Cetus Manufacturing Module code from A7 6696 | -6/Cetus | Spotted Cetus Guard 6696 | -6/Cetus | Spotted Cetus Guard 6701 | -6/Cetus | Allies destroyed Cetus Guard 6701 | -6/Cetus | Spotted Cetus Guard 6704 | -6/Cetus | Destroyed Cetus Guard 6704 | -6/Cetus | Destroyed Cetus Guard 6704 | -6/Cetus | Spotted Cetus Guard 6705 | -6/Cetus | Destroyed Cetus Guard 6762 | -6/Cetus | Discovered new exit (range 15) 6781 | -6/Cetus | Spotted Cetus Guard 6781 | -6/Cetus | Spotted Cetus Guard 6787 | -6/Cetus | Spotted Cetus Guard 6788 | -6/Cetus | Destroyed Cetus Guard 6788 | -6/Cetus | Spotted Cetus Guard 6792 | -6/Cetus | Destroyed Cetus Guard 6792 | -6/Cetus | Destroyed Cetus Guard 6793 | -6/Cetus | Destroyed Cetus Guard 6796 | -6/Cetus | Discovered exit to Factory (range 15) 6800 | -6/Cetus | Met Revision 17 6814 | -6/Cetus | Destroyed 9 combat bots 6841 | -6/Cetus | Started Cetus Manufacturing Module 6866 | -6/Cetus | Manufactured an Enhanced Grunt 6879 | -6/Cetus | Escorted A7 to Cetus Mainframe 6891 | -6/Cetus | Manufactured an Enhanced Grunt 6916 | -6/Cetus | Manufactured an Enhanced Grunt 6941 | -6/Cetus | Manufactured an Enhanced Grunt 6966 | -6/Cetus | Manufactured an Enhanced Grunt 6993 | -6/Cetus | Identified exit to Archives 7008 | -6/Cetus | Entered Archives 7008 | -6/Archives | Accompanied by 7 allies 7013 | -6/Archives | Received a hacking code to weaken MAIN.C 7041 | -6/Archives | Discovered new exit (range 16) 7059 | -6/Archives | Identified exit to Hub_04(d) 7069 | -6/Archives | Entered Hub_04(d) 7069 | -6/Hub_04(d) | Accompanied by 6 allies 7201 | -6/Hub_04(d) | Discovered exit to Factory (range 5) 7278 | -6/Hub_04(d) | Disrupted transfer network 7309 | -6/Hub_04(d) | Network Hub disabled 7313 | -6/Hub_04(d) | Build established: Scavenger-Mutant 7385 | -6/Hub_04(d) | Entered Factory 7385 | -5/Factory | Accompanied by 3 allies 7385 | -5/Factory | Evolved 2 slots: Propulsion x1, Utility x1 7957 | -5/Factory | Manually triggered Chute Trap 7957 | -5/Factory | Sucked down chute 7957 | -5/Factory | Entered Waste 7957 | -5/Waste | Met up with 1 ally sucked down the chute earlier 7958 | -5/Waste | Joined by Warlord forces that had cleared the area 7967 | -5/Waste | Found Prototype Device 7967 | -5/Waste | Identified Thermal Barrier 8040 | -5/Waste | Discovered new exit (range 12) 8113 | -5/Waste | Identified exit to Factory 8114 | -5/Waste | Entered Factory 8114 | -5/Factory | Accompanied by 3 allies 8223 | -5/Factory | Repaired Adv. Phase Shifter 8319 | -5/Factory | Repaired Com. HERF Cannon 8424 | -5/Factory | Discovered new exit (range 15) 8430 | -5/Factory | Identified exit to Upper Caves 8430 | -5/Factory | Entered Upper Caves 8748 | -5/Upper Caves | Learned Factory trap positions 8859 | -5/Upper Caves | Discovered new exit (range 12) 8864 | -5/Upper Caves | Identified exit to Upper Caves 8865 | -5/Upper Caves | Encountered a Warlord checkpoint 8866 | -5/Upper Caves | Entered another Upper Caves area 8875 | -5/Upper Caves | Discovered new exit (range 11) 8946 | -5/Upper Caves | Learned Factory garrison access intel 8961 | -5/Upper Caves | Learned 12 Factory zone layouts 8988 | -5/Upper Caves | Attracted the attention of an 0b10 checkpoint 9258 | -5/Upper Caves | Discovered new exit (range 12) 9263 | -5/Upper Caves | Identified exit to Zhirov 9279 | -5/Upper Caves | Build established: Hauler-Mutant 9357 | -5/Upper Caves | Entered Zhirov 9358 | -5/Zhirov | Discovered new exit (range 3) 9366 | -5/Zhirov | Met Zhirov 9376 | -5/Zhirov | Learned location of Command (-1) 9376 | -5/Zhirov | Learned location of Testing (-3) 9376 | -5/Zhirov | Learned location of Quarantine (-2) 9379 | -5/Zhirov | Zhirov requested help retrieving the SGEMP Prototype 9385 | -5/Zhirov | Found Alien Artifact 9385 | -5/Zhirov | Identified Integrated Dissipator 9385 | -5/Zhirov | Installed Integrated Dissipator, increased core heat dissipation (+2%) 9413 | -5/Zhirov | Found Alien Artifact 9426 | -5/Zhirov | Identified exit to Proximity Caves 9429 | -5/Zhirov | Entered Proximity Caves 9538 | -4/Proximity Caves | Identified exit to Factory 9601 | -4/Proximity Caves | Learned Research trap positions 9786 | -4/Proximity Caves | Entered a huge 0b10 base via the front door 9974 | -4/Proximity Caves | Spotted B-86 Titan 10235 | -4/Proximity Caves | Entered Factory 10235 | -4/Factory | Accompanied by 5 allies 10235 | -4/Factory | Evolved 2 slots: Power x1, Utility x1 10236 | -4/Factory | Identified exit to Research 10236 | -4/Factory | Identified exit to Upper Caves 10237 | -4/Factory | Loaded intel: 78 trap records 10238 | -4/Factory | Loaded intel: 4 garrison access locations 10441 | -4/Factory | Repaired Cld. Aerolev Unit 10550 | -4/Factory | Build established: Scavenger-Mutant 10642 | -4/Factory | Found Prototype Slashing Weapon 10642 | -4/Factory | Identified Vibroblade 10651 | -4/Factory | Found Vibroblade 10685 | -4/Factory | Fabricated Exp. Sensor Array (x1) 10767 | -4/Factory | Fabricated Exp. Sensor Array (x1) 11065 | -4/Factory | Manually triggered Chute Trap 11065 | -4/Factory | Sucked down chute 11065 | -4/Factory | Entered Waste 11065 | -4/Waste | The area was eerily silent 11124 | -4/Waste | Discovered new exit (range 15) 11171 | -4/Waste | Found Damper Plating 11189 | -4/Waste | Identified exit to Factory 11189 | -4/Waste | Entered Factory 11279 | -4/Factory | Build established: Hauler-Mutant 11306 | -4/Factory | Repaired Adv. Reaction Control System 11826 | -4/Factory | Identified exit to Armory 11956 | -4/Factory | Discovered exit to Research (range 16) 12051 | -4/Factory | Repaired Cld. Gravmag System 12102 | -4/Factory | Repaired Imp. KE Penetrator 12181 | -4/Factory | Identified Transdimensional Reconstructor 12298 | -4/Factory | Fabricated Cmb. Linear Gravjet (x2) 12368 | -4/Factory | Fabricated Cmb. Linear Gravjet (x2) 12440 | -4/Factory | Fabricated Cmb. Linear Gravjet (x2) 12586 | -4/Factory | Fabricated Adv. Reaction Control System (x1) 12634 | -4/Factory | Build established: Hauler-Sprinter 12650 | -4/Factory | Entered Armory 12656 | -4/Armory | Destroyed 8 combat bots 12806 | -4/Armory | Found Prototype Device 12842 | -4/Armory | Lost 7 parts (1p2n2u2w) 12908 | -4/Armory | System corruption reached 10% 12916 | -4/Armory | Found Fusion Bomb Launcher 12938 | -4/Armory | Found Prototype Launcher 13148 | -4/Armory | Destroyed 7 combat bots 13205 | -4/Armory | Identified Scatter Rocket Array 13213 | -4/Armory | Identified Exp. ECM Suite 13320 | -4/Armory | Discovered exit to Research (range 4) 13356 | -4/Armory | Fabricated Cmb. Linear Gravjet? 13367 | -4/Armory | Fabricated Cmb. Linear Gravjet? 13410 | -4/Armory | Destroyed 7 combat bots 13440 | -4/Armory | First assault squad dispatched 13584 | -4/Armory | Found Prototype Launcher 13584 | -4/Armory | Identified Mni. Smartbomb Launcher 13596 | -4/Armory | Fabricated Exp. Sensor Array? 13639 | -4/Armory | Fabricated Gamma Bomb Array (x1) 13754 | -4/Armory | Discovered new exit (range 2) 13756 | -4/Armory | Entered Lab 13756 | -4/Lab | Discovered exit to Research (range 9) 13766 | -4/Lab | Unable to decrypt terminal 13766 | -4/Lab | Opened the door to a hidden lab 13767 | -4/Lab | Gained access to the hidden lab's interior 13768 | -4/Lab | Unable to decrypt terminal 13770 | -4/Lab | Detected by scanners 13776 | -4/Lab | Confronted by A5 13790 | -4/Lab | Build established: Mechanic-Mutant 13832 | -4/Lab | Destroyed A5 13848 | -4/Lab | Found Alien Artifact 13848 | -4/Lab | Identified Core Expander 13848 | -4/Lab | Installed Core Expander, added new Power slot 13865 | -4/Lab | Found Prototype Hackware 13884 | -4/Lab | Found Alien Artifact 13884 | -4/Lab | Identified Integrated Reactor 13884 | -4/Lab | Installed Integrated Reactor, increased core energy generation (+2%) 13892 | -4/Lab | Found Prototype Protection 13892 | -4/Lab | Identified Med. Regenerative Plating 13903 | -4/Lab | Found Prototype Special Weapon 13903 | -4/Lab | Identified Gui. Remote Datajack 13911 | -4/Lab | Found Prototype Energy Cannon 13911 | -4/Lab | Identified Warp Cannon 13922 | -4/Lab | Found Prototype Hackware 13977 | -4/Lab | Found Alien Artifact 13984 | -4/Lab | Found Transdimensional Reconstructor 13995 | -4/Lab | Found Prototype Energy Gun 13995 | -4/Lab | Identified Tachyon Dispersion Ray 14018 | -4/Lab | Entered Research 14018 | -3/Research | Evolved 2 slots: Utility x2 14019 | -3/Research | Loaded intel: 72 trap records 14150 | -3/Research | Build established: Generator-Mutant 14218 | -3/Research | Revision forces began assault on 0b10 14278 | -3/Research | Intercept squad dispatched 14285 | -3/Research | Spotted Tracker 14299 | -3/Research | Destroyed Tracker 14299 | -3/Research | Spotted Tracker 14311 | -3/Research | Destroyed Tracker 14379 | -3/Research | Found Prototype Device 14379 | -3/Research | Identified Exp. Phase Shifter 14395 | -3/Research | Found Exp. Targeting Computer 14400 | -3/Research | Found Prototype Energy Gun 14445 | -3/Research | Discovered new exit (range 16) 14451 | -3/Research | Identified Immobilizer 14600 | -3/Research | Identified exit to Testing 14603 | -3/Research | Build established: Mechanic-Mutant 14718 | -3/Research | Research terminal network offline 14741 | -3/Research | Intercept squad dispatched 14757 | -3/Research | Spotted Tracker 14757 | -3/Research | Spotted Tracker 14757 | -3/Research | Spotted Tracker 14772 | -3/Research | Destroyed Tracker 14784 | -3/Research | Destroyed Tracker 14794 | -3/Research | Destroyed Tracker 14803 | -3/Research | Spotted Combat Programmer 14804 | -3/Research | Spotted Combat Programmer 14810 | -3/Research | Found Immobilizer 14816 | -3/Research | System corruption reached 10% 14824 | -3/Research | Entered Testing 14860 | -3/Testing | Found Prototype Device 14860 | -3/Testing | Identified Exp. Thermal Defense Suite 14877 | -3/Testing | Identified Core Reset Matrix 14933 | -3/Testing | Found Prototype Device 14933 | -3/Testing | Identified EM Disruption Field 14946 | -3/Testing | Intercept squad dispatched 14954 | -3/Testing | Spotted Tracker 14969 | -3/Testing | Spotted Combat Programmer 14972 | -3/Testing | Destroyed Tracker 15006 | -3/Testing | Destroyed Combat Programmer 15071 | -3/Testing | Discovered new exit (range 15) 15217 | -3/Testing | Identified exit to Research 15217 | -3/Testing | Entered Research 15217 | -2/Research | Evolved 2 slots: Utility x2 15219 | -2/Research | Identified Exp. Hacking Suite 15220 | -2/Research | Identified Quantum Router 15241 | -2/Research | Identified exit to Quarantine 15296 | -2/Research | Fabricated Exp. Sensor Array (x1) 15317 | -2/Research | Local fabrication network quarantined 15415 | -2/Research | Repaired Cld. Fission Core 15531 | -2/Research | Spotted B-90 Cyclops 15566 | -2/Research | Destroyed B-90 Cyclops 15568 | -2/Research | Build established: Hacker-Mutant 15714 | -2/Research | Intercept squad dispatched 15717 | -2/Research | Spotted Tracker 15719 | -2/Research | Spotted Tracker 15744 | -2/Research | First assault squad dispatched 15748 | -2/Research | Spotted Combat Programmer 15756 | -2/Research | Self-destructed Last Messages --------------- 15741_ H-88 Terminator suffers critical hit. 15741_ Destroyed KE Penetrator. 15742_ Med. Reflective Plating destroyed. 15743_ P-80 Master resets U-05 Engineer, system corruption cleaned. 15744_ ALERT: Significant disruption in Zone 9Y, assault force dispatched. 15744_ Cld. Fission Core destroyed. 15744_ Slug penetrates Tracker. 15746_ Lgt. Particle Reactor destroyed. 15747_ System corrupted: Imp. KE Penetrator targeting data glitched. 15749_ Med. Regenerative Plating destroyed. 15749_ Combat Programmer resets U-05 Engineer, system corruption cleaned. 15749_ Mason Extractor disabled. 15750_ K-01 Serf collects debris. 15750_ Slug penetrates Mason Extractor. 15752_ Cld. Fission Core destroyed. 15753_ Slug penetrates Wall. 15755_ Imp. KE Penetrator destroyed. 15755_ Imp. Remote Force Field destroyed. 15755_ Cmb. Linear Gravjet destroyed. [Achievement: Collector] Map ----- +----------------------------------------------------+ | ?????????????????????????????????????????????????? | | ?????????????????????????????????????????????????? | | ?????????????????????????????????????????????????? | | ?????????????????????????????????????????????????? | | ?????????????????????????????????????????????????? | | ?????????????????????????????????????????????????? | | ?????????????????????????????????????????????????? | | ?????????????????????????????????????????????????? | | ?????????????????????????????????????????????????? | | ?????????????????????????????????????????????????? | | ?????????????????????????????????????????????????? | | ?????????????????????????????????????????????????? | | ?????????????????????????????????????????????????? | | ?????????????????????????????????????????????????? | | ?????????????????????????????????????????????????? | | ?????????????????????????????????????????????????? | | ?????????????????????????????????????????????????? | | ???????????? ????????????????????????????????????? | | ???????????? ???????????????????????????????????? | | ????????????" ?????????????????????????????????? | | ????????????" ????????????????????????????????? | | ?????????????? ???????????????????????????????? | | ???????????????? ?????????????????????????????? | | ?????????? pk ?? ????????????????????????????? | | ??????????? gs gs !############???????????????? | | ??????????????g " " =p%!=@g=h k u u ????????? | | ??????????????? """ =############???????????????? | | ??????????????????????###########????????????????? | | ??????????????????????#= """"" #????????????????? | | ??????????????????????# """"" #????????????????? | | ??????????????????????# """"" #????????????????? | | ??????????????????????# #????????????????? | | ??????????????????????# #????????????????? | | ??????????????????????# #????????????????? | | ??????????? # #????????????????? | | ??????????? / | #?#####??????????? | | ??????????? #############"""##?????????? | | ???????????"" """ ???# ### % #?????????? | | ????????????? ??""" ######## ! #?????????? | | ?????????????? """ # ##????????? | | ????????????? ^ # ##????????? | | ????????????? ^ # ##????????? | | ????????????? + ##????????? | | ??????????????#######+### # ##????????? | | ??????????????# # # [ ##????????? | | ??????????????# # ^ #####+######????????? | | ??????????????# # # #?????????? | | ??????????????# " " # ####?????????? | | ??????????????# ""R"" # #????????????? | | ??????????????# """"" # " ##???????????? | +----------------------------------------------------+ Best States ------------- Heat Dissipation 92 Energy Generation 95 Energy Capacity 2640 Matter Stores 300 Matter Capacity 700 Sight Range 16 Robot Scan Range 30 Terrain Scan Density 10 ECM Strength 5 Power Amplification 30 Additional Mass Support 16 Armor Coverage 1425 Resistance: TH 15 Resistance: EM 90 Power Shielding 66 Phase Shifting 20 Evasion (%) 84 Targeting Accuracy 20 Recoil Reduction 1 Particle Charging 30 Offensive Hacking 16 Defensive Hacking 25 Item Schematics ----------------- Hcp. Storage Unit | -10/Materials | Hacked Cmb. Airjet | -8/Materials | Scanalyzed Hvy. Shock Bomb Launcher | -7/Factory | Scanalyzed Exp. Sensor Array | -7/Data Miner | Free Exp. Targeting Computer | -7/Data Miner | Free Lgt. Regenerative Plating | -7/Data Miner | Free Combat Drone Bay | -7/Data Miner | Free Exp. Terrain Scan Processor | -7/Data Miner | Free Kinetic Spear | -7/Data Miner | Free Imp. Force Field | -5/Factory | Scanalyzed Cmb. Gravmag System | -5/Factory | Scanalyzed Quantum Reactor | -5/Factory | Scanalyzed Assault Drone Bay | -5/Zhirov | Free Exp. Heat Sink | -5/Zhirov | Free Exp. Optical Array | -5/Zhirov | Free Imp. Arc Thrower | -5/Zhirov | Free Cmb. Linear Gravjet | -4/Factory | Hacked Adv. Energy Well | -4/Factory | Scanalyzed Robot Schematics ------------------ I-47 Archangel | -7/Data Miner | Free I-36 Angel | -7/Data Miner | Free P-70 Sage | -7/Data Miner | Free X-72 Disruptor | -7/Data Miner | Free G-67 Veteran | -7/Data Miner | Free G-50 Soldier | -7/Data Miner | Free S-27 Virus | -7/Data Miner | Free Fabricated ------------ Cmb. Airjet | x2 | -7/Factory Imp. Force Field | x2 | -7/Factory | Preloaded Exp. Sensor Array | x1 | -4/Factory Exp. Sensor Array | x1 | -4/Factory Cmb. Linear Gravjet | x2 | -4/Factory Cmb. Linear Gravjet | x2 | -4/Factory Cmb. Linear Gravjet | x2 | -4/Factory Adv. Reaction Control System | x1 | -4/Factory | Preloaded Cmb. Linear Gravjet | x2 | -4/Armory Cmb. Linear Gravjet | x2 | -4/Armory Exp. Sensor Array | x1 | -4/Armory Gamma Bomb Array | x1 | -4/Armory | Preloaded Exp. Sensor Array | x1 | -2/Research Alien Tech Used ----------------- Integrated Dissipator Core Expander Integrated Reactor Achievements -------------- Anyone Home? Collector Main Advantage We Are Legion Challenges ------------ None Game ------ Seed HugeLinearGreatsword Manual? 0 Play Time 08:17:23 Cumulative 159.8 hours Start 2019.10.20 @ 09:39:40 End 2019.10.21 @ 21:50:55 Sessions 45 Manual Loads 0 Difficulty Rogue Special Mode None Game No. 89 Rogue 89 Adventurer 0 Explorer 0 Win Type - Total 5 Types 4/0/0/1/0/0/0 Lore% 60 Gallery% 75 Achievement% 57 Wizard Run 0 Options --------- ASCII 0 Keyboard 0 Movement Mouse Keybinds 0 Fullscreen 1 Font 18/X11 Map View 76x50 Tactical HUD 1 Map Filters NONE Filters NONE Steam 1 RUN: d31ed583-cd35-422a-9886-bdab06709b73